[Event "US Masters 2022"]
[Site "Charlotte"]
[Date "2022.11.25"]
[Round "3.15"]
[White "Hiwale, Ronak"]
[Black "Escalante Ramirez, Brian Sebasti"]
[Result "0-1"]
[ECO "E68"]
[WhiteElo "1970"]
[BlackElo "2468"]
[Annotator "TA"]
[PlyCount "72"]
[EventDate "2022.11.23"]
[EventType "swiss"]
[EventCountry "USA"]
[SourceTitle "playchess.com"]
[Source "ChessBase"]
[SourceQuality "1"]
[TimeControl "5400+30"]

{[%evp 16,71,26,40,25,30,43,50,56,24,24,0,0,-15,3,0,0,-28,-25,-43,-41,-54,-31,-29,-5,-55,-53,-115,-90,-95,-101,-116,-122,-212,-219,-229,-234,-386,-399,-607,-568,-673,-680,-677,-672,-1074,-1058,-1059,-1064,-1002,-992,-1375,-1368,-1310,-1117,-29994,-29995,-29999]} 1. d4 {[%emt 0:00:12]} Nf6 {[%emt 0:03:22]} 2. c4 {[%emt 0:00:11]} g6 {[%emt 0:02:12]} 3. g3 {[%emt 0:00:11]} Bg7 {[%emt 0:03:12]} 4. Bg2 {[%emt 0:00:26]} O-O {[%emt 0:00:05]} 5. Nf3 {[%emt 0:00:09]} d6 {[%emt 0:00:11]} 6. O-O {[%emt 0:00:22]} Nbd7 {[%emt 0:00:02]} 7. Nc3 {[%emt 0:02:23]} e5 {[%emt 0:00:03]} 8. e4 {[%emt 0:03:49]} c6 {[%emt 0:00:03]} 9. Qc2 {[%emt 0:04:46]} Qb6 {[%emt 0:28:30] E68: King's Indian: Fianchetto: 6...Nbd7 7 0-0 e5 8 e4.} 10. Na4 {[%emt 0:12:00] [#]} Qa6 $146 {[%emt 0:02:55][%cal Of6e4]} ({Predecessor:} 10... Qc7 11. Rd1 Re8 12. h3 Nf8 13. Nc3 Ne6 14. Be3 Bd7 15. Rac1 Rad8 16. b4 exd4 17. Nxd4 Nxd4 18. Bxd4 {1-0 (37) Slaba,A (1840)-Ruzic,P (1488) Mamaia 2017}) 11. dxe5 $1 {[%emt 0:04:44]} dxe5 {[%emt 0:04:16][%cal Of6e4] White is slightly better.} 12. c5 {[%emt 0:00:36]} b5 {[%emt 0:01:13]} 13. Nc3 {[%emt 0:10:51]} b4 {[%emt 0:05:26]} 14. Nd1 {[%emt 0:06:13]} (14. Na4 $5) 14... Qb5 {[%emt 0:14:59]} 15. Be3 {[%emt 0:02:21]} a5 {[%emt 0:01:43]} 16. b3 {[%emt 0:02:46]} Ba6 {[%emt 0:05:58]} 17. Re1 {[%emt 0:05:21]} Qd3 $1 {[%emt 0:01:42] Inhibits Bf1.} 18. Qxd3 {[%emt 0:00:20]} Bxd3 {[%emt 0:00:03]} 19. Nd2 $1 {[%emt 0:01:44]} Ng4 {[%emt 0:00:01]} 20. Rc1 {[%emt 0:00:17]} ({White should play} 20. Bh3 $11 Nxe3 21. Rxe3) 20... Rfd8 $15 {[%emt 0:05:05][%cal Bf8d8,Bd8d2,Bd2a2][%mdl 32]} 21. Nb2 {[%emt 0:13:56] Black converts the advantage convincingly.} (21. Bg5 $15) 21... Nxe3 $17 {[%emt 0:01:07] Black has more active pieces.} 22. fxe3 {[%emt 0:03:10]} Bb5 {[%emt 0:01:40][%cal Od7c5] A strong pair of Bishops.} 23. Nf3 {[%emt 0:02:24]} Bf8 {[%emt 0:01:06]} 24. Bf1 {[%emt 0:05:00]} (24. Nc4 $17) 24... Nxc5 $19 {[%emt 0:01:21]} (24... Bxc5 25. Nd3 Bxd3 26. Bxd3 $17) 25. Nxe5 {[%emt 0:02:12]} Rd2 {[%emt 0:00:07] Against Rc2} ({And not} 25... Nxe4 26. Nxc6 Bxc6 27. Rxc6 $17) 26. Nbc4 {[%emt 0:05:14]} (26. Rb1) 26... Rxa2 {[%emt 0:00:47]} 27. Nb6 {[%emt 0:00:14]} (27. Rb1 $142) 27... Rd8 {[%emt 0:06:39][%cal Ba8d8,Bd8d2,Bd2g2][%mdl 32]} 28. Bxb5 {[%emt 0:01:34]} cxb5 {[%emt 0:00:03]} 29. Nd5 {[%emt 0:00:26]} Nxe4 {[%emt 0:02:58]} 30. Nc7 {[%emt 0:01:44]} Rdd2 {[%emt 0:02:17] [#] ( -> ...Rg2+)} 31. Nf3 {[%emt 0:00:42]} Rg2+ {[%emt 0:02:46]} 32. Kh1 {[%emt 0:00:38]} Bd6 {[%emt 0:00:12][%cal Od6g3] White must now prevent ...Bxg3!} 33. Nxb5 {[%emt 0:02:27] [#]} Bxg3 $1 {[%emt 0:00:10][%mdl 512]} 34. Rc8+ {[%emt 0:01:25]} Kg7 {[%emt 0:00:01][%cal Rg3h2]} 35. Rf1 {[%emt 0:00:17]} Bxh2 {[%emt 0:01:00][%cal Re4g3]} 36. Ng5 {[%emt 0:00:52]} Ng3# {[%emt 0:00:06] Weighted Error Value: White=0.85/Black=0.02 (flawless)} 0-1

[Event "US Masters 2022"]
[Site "Charlotte"]
[Date "2022.11.25"]
[Round "3.16"]
[White "Ozenir, Ekin Baris"]
[Black "Liang, Awonder"]
[Result "1/2-1/2"]
[ECO "E01"]
[WhiteElo "2352"]
[BlackElo "2630"]
[Annotator "TA"]
[PlyCount "79"]
[EventDate "2022.11.23"]
[EventType "swiss"]
[EventCountry "USA"]
[SourceTitle "playchess.com"]
[Source "ChessBase"]
[SourceQuality "1"]
[TimeControl "5400+30"]

{[%evp 18,79,19,18,22,0,14,0,19,10,20,21,21,6,7,-18,0,-58,-50,-46,-58,-60,-28,-45,-49,-55,-58,-64,-25,-33,-6,-13,-13,-12,-13,-12,0,-11,0,-39,0,0,43,44,165,83,80,0,81,0,0,0,0,0,0,0,0,0,8,0,0,0,8,0]} 1. d4 {[%emt 0:00:07]} Nf6 {[%emt 0:00:01]} 2. c4 {[%emt 0:00:12]} e6 {[%emt 0:00:01]} 3. Nf3 {[%emt 0:00:12]} d5 {[%emt 0:02:33]} 4. g3 {[%emt 0:00:19]} Bd6 {[%emt 0:01:07]} 5. Bg2 {[%emt 0:01:12]} O-O {[%emt 0:00:03]} 6. O-O {[%emt 0:02:32]} c6 {[%emt 0:01:14]} 7. Nbd2 {[%emt 0:02:47]} Ne4 {[%emt 0:01:38]} 8. b3 {[%emt 0:05:39]} f5 {[%emt 0:00:23]} 9. Bb2 {[%emt 0:00:15]} Nd7 {[%emt 0:01:29]} 10. Qc2 {[%emt 0:03:45]} Qe7 {[%emt 0:01:26] E01: Catalan: Early deviations.} 11. Rac1 {[%emt 0:13:15]} a5 {[%emt 0:01:43]} 12. Ne5 {[%emt 0:02:22]} Nxd2 {[%emt 0:10:47]} 13. Qxd2 {[%emt 0:01:41] [#]} Nxe5 $146 {[%emt 0:00:09]} ({Predecessor:} 13... Nf6 14. c5 Bc7 15. a4 Bd7 16. Qc2 Be8 17. Rce1 h5 18. Qc1 h4 19. gxh4 Ne4 {½-½ (94) Maharramzade,J (2459)-Sargissian,G (2520) Tbilisi 2001}) 14. dxe5 {[%emt 0:00:07]} Bb4 {[%emt 0:00:05]} 15. Qe3 {[%emt 0:04:39]} a4 {[%emt 0:01:28]} 16. cxd5 {[%emt 0:05:56]} exd5 {[%emt 0:00:30]} 17. Bd4 {[%emt 0:01:50]} (17. Qd4 $11) 17... f4 $15 {[%emt 0:05:19]} 18. gxf4 {[%emt 0:05:23]} Qh4 {[%emt 0:00:10]} 19. Qg3 {[%emt 0:07:55]} Qxf4 {[%emt 0:00:46]} 20. Qxf4 {[%emt 0:00:21]} Rxf4 {[%emt 0:00:02]} 21. e3 {[%emt 0:00:05]} Rg4 {[%emt 0:01:01][%cal Bf4g4,Bg4g5,Bg5f5][%mdl 32]} 22. Kh1 {[%emt 0:05:54]} Bf5 {[%emt 0:00:20]} 23. Bh3 {[%emt 0:03:52]} Rg5 {[%emt 0:02:04]} (23... Rxd4 $5 24. Bxf5 Rh4 $15) 24. Bxf5 {[%emt 0:00:18]} Rxf5 {[%emt 0:00:01]} 25. bxa4 {[%emt 0:02:12]} Rxa4 {[%emt 0:11:13]} 26. Rc2 {[%emt 0:00:04]} Bf8 {[%emt 0:06:21]} 27. Rb1 {[%emt 0:05:52]} Rb4 {[%emt 0:00:01]} 28. Rcb2 {[%emt 0:03:29]} Rxb2 {[%emt 0:08:59]} (28... Rc4 {with more complications.} 29. Rxb7 c5 30. e6 cxd4 31. e7 Bxe7 32. Rxe7 h6) 29. Rxb2 {[%emt 0:00:02][%mdl 4096] Endgame KRB-KRB} c5 {[%emt 0:00:01]} (29... b5 $5 {[%cal Rc6c5]}) 30. Bc3 {[%emt 0:00:06]} b5 {[%emt 0:00:14]} (30... d4 $14 31. exd4 Rf3) 31. Rxb5 $18 {[%emt 0:03:41] Black must now prevent e6.} Rxf2 {[%emt 0:00:06] [#]} 32. a4 {[%emt 0:00:01]} ({Better is} 32. e6 $1 $16 {Strongly threatening Rb8.} Re2 33. Rb8 Rxe3 34. Re8) 32... Ra2 {[%emt 0:09:22] [#]} (32... Kf7 $11 {remains equal.}) 33. a5 {[%emt 0:00:21]} (33. e6 $1 $16 {Intending Rb8 and mate.} Rxa4 34. Rb8) 33... Kf7 $11 {[%emt 0:04:10] The position is equal.} 34. Rb6 {[%emt 0:01:59]} Be7 {[%emt 0:04:14]} 35. e6+ {[%emt 0:05:47]} Kg6 {[%emt 0:00:36]} 36. Rb1 {[%emt 0:00:11]} (36. Rb7 Bf6 37. e7 (37. Bxf6 Kxf6 38. e7 Kf7 $17) 37... Kf7 38. Bxf6 gxf6 $17) 36... Bd8 $1 {[%emt 0:07:55]} 37. Rb8 {[%emt 0:00:25]} Bh4 {[%emt 0:05:21]} (37... Bxa5 $2 38. e7 Bxc3 39. e8=Q+ $18 (39. e8=B+ $2 Kf6 $19)) 38. Rb1 {[%emt 0:01:45]} (38. Rb7 Bf6 39. Rb8 (39. Bxf6 Kxf6 40. e7 Kf7 $17) 39... Kf5 $17) 38... Bd8 $1 {[%emt 0:02:33]} 39. Rb8 {[%emt 0:00:28]} Bh4 {[%emt 0:00:05]} (39... Bxa5 $2 40. e7 Bxc3 41. e8=Q+ $18 (41. e8=B+ $2 {too greedy.} Kf6 $19)) 40. Rb1 {[%emt 0:01:32] Weighted Error Value: White=0.14 (very precise) /Black=0.18 (very precise)} ({Don't play} 40. Rb7 Bf6 41. Rb8 (41. Bxf6 Kxf6 42. e7 Kf7 $17) 41... Kf5 $17) 1/2-1/2

[Event "US Masters 2022"]
[Site "Charlotte"]
[Date "2022.11.25"]
[Round "3.17"]
[White "Theodorou, Nikolas"]
[Black "Plotkin, Mark"]
[Result "1/2-1/2"]
[ECO "A06"]
[WhiteElo "2598"]
[BlackElo "2361"]
[Annotator "TA"]
[PlyCount "40"]
[EventDate "2022.11.23"]
[EventType "swiss"]
[EventCountry "USA"]
[SourceTitle "playchess.com"]
[Source "ChessBase"]
[SourceQuality "1"]
[TimeControl "5400+30"]

{[%evp 12,40,28,23,31,22,43,0,32,0,12,-49,-46,-48,-47,-72,-37,-35,-29,-100,-104,-90,0,0,0,-110,-117,-273,0,0,441]} 1. Nf3 {[%emt 0:00:09]} d5 {[%emt 0:01:05]} 2. d4 {[%emt 0:00:59]} Nf6 {[%emt 0:00:26]} 3. c4 {[%emt 0:00:09]} c6 {[%emt 0:00:03]} 4. e3 {[%emt 0:00:35]} e6 {[%emt 0:01:03]} 5. b3 {[%emt 0:01:15]} Bd6 {[%emt 0:06:58]} 6. Bd3 {[%emt 0:01:26]} Nbd7 {[%emt 0:01:13]} 7. Bb2 {[%emt 0:00:25]} Ne4 {[%emt 0:01:24] A06: Réti Opening: 1 Nf3 d5.} 8. O-O {[%emt 0:01:33]} f5 {[%emt 0:02:02]} 9. Ba3 {[%emt 0:03:23]} Bc7 {[%emt 0:01:52] [#]} 10. Ne1 $146 {[%emt 0:13:32]} ({Predecessor:} 10. Qc2 g5 11. Nc3 g4 12. Nd2 Rg8 13. cxd5 Bxh2+ 14. Kxh2 Qh4+ 15. Kg1 Nxc3 16. g3 {1-0 (30) Arat,U (2420)-Furhoff,J (2296) Izmir 2016}) 10... Qf6 {[%emt 0:13:57]} 11. f4 {[%emt 0:06:27]} (11. Be2 $11) 11... g5 $1 $15 {[%emt 0:03:01]} 12. Bxe4 {[%emt 0:09:03]} dxe4 {[%emt 0:00:46]} 13. Nc3 {[%emt 0:03:44]} Qh6 {[%emt 0:03:41]} 14. d5 {[%emt 0:07:02]} gxf4 {[%emt 0:03:43] aiming for ...f3.} 15. exf4 {[%emt 0:15:25]} (15. dxc6 $11 bxc6 16. Bd6) 15... exd5 {[%emt 0:08:37]} ({But not} 15... Bxf4 16. Rxf4 $1 Qxf4 17. Qh5+ Kd8 18. dxe6 Qe3+ 19. Kh1 Qxc3 20. Rd1 $16) (15... Rg8 {is interesting.} 16. Qd2 exd5 17. cxd5 Kf7) 16. cxd5 {[%emt 0:01:22]} Bb6+ {[%emt 0:03:57]} ({Better is} 16... Rg8 $17 {And now ...Kf7 would win.} 17. Qd2 Nf6) 17. Kh1 $11 {[%emt 0:00:03]} Nf6 {[%emt 0:00:24] Strongly threatening ...Ng4.} 18. Nc2 {[%emt 0:08:13]} (18. Nf3 $1 $11 {keeps the balance.}) 18... Rg8 $17 {[%emt 0:12:34] Hoping for ...Ng4.} 19. dxc6 $2 {[%emt 0:05:28] [#]} (19. Qe1 $17) 19... Rg6 $4 {[%emt 0:00:58][%mdl 8192]} (19... Nh5 $1 $19 {[%csl Gg8][%cal Rh5g3] and life is good for Black.} 20. Ne2 (20. Qd5 $2 Ng3#) 20... bxc6) 20. Qd6 $18 {[%emt 0:05:14][%csl Ga3][%cal Rd6e7] The board is on fire.} Qxh2+ $1 {[%emt 0:00:42][%mdl 32832] Weighted Error Value: White=0.49/Black=0.32. An unexpected result.} 1/2-1/2

[Event "US Masters 2022"]
[Site "Charlotte"]
[Date "2022.11.24"]
[Round "3.18"]
[White "Garcia Molla, Victor"]
[Black "Burke, John M"]
[Result "*"]
[WhiteElo "2407"]
[BlackElo "2580"]
[Annotator "TA"]
[PlyCount "27"]
[EventDate "2022.11.23"]
[EventType "swiss"]
[EventCountry "USA"]
[SourceTitle "playchess.com"]
[Source "ChessBase"]
[SourceQuality "1"]
[TimeControl "5400+30"]

{[%evp 9,14,14,8,17,18,18,9]} 1. e4 {[%emt 0:03:59]} c5 {[%emt 0:00:10]} 2. Nf3 {[%emt 0:00:12]} d6 {[%emt 0:00:05]} 3. Bb5+ {[%emt 0:01:09]} Nd7 {[%emt 0:00:09]} 4. d4 {[%emt 0:00:26]} cxd4 {[%emt 0:00:06]} 5. Nxd4 {[%emt 0:00:33]} Ngf6 {[%emt 0:00:38] The position is equal.} 6. O-O {[%emt 0:01:05] B51: Sicilian: Moscow Variation (3 Bb5+) without 3...Bd7.} a6 {[%emt 0:00:36]} 7. Bd3 {[%emt 1:26:36]} Nc5 {[%emt 0:00:22] [#] A rather calm draw.   Weighted Error Value: White=0.00 (flawless) /Black=0.00 (flawless)} {Predecessor:} 8. Nc3 $146 e5 9. Nf5 Bxf5 10. exf5 d5 11. Bg5 d4 12. Ne4 Qb6 13. Bxf6 gxf6 14. Rb1 {1-0 (47) Pichot,A (2652)-Salem,A (2690) Chess.com INT 2022} *

[Event "US Masters 2022"]
[Site "Charlotte"]
[Date "2022.11.25"]
[Round "3.18"]
[White "Rodriguez Garcia, Victor"]
[Black "Burke, John M"]
[Result "0-1"]
[ECO "B51"]
[WhiteElo "2350"]
[BlackElo "2580"]
[Annotator "TA"]
[PlyCount "96"]
[EventDate "2022.11.23"]
[EventType "swiss"]
[EventCountry "USA"]
[SourceTitle "playchess.com"]
[Source "ChessBase"]
[SourceQuality "1"]
[TimeControl "5400+30"]

{[%evp 9,96,0,9,0,12,10,19,16,12,13,11,0,0,0,0,0,0,0,0,0,0,0,6,0,0,0,0,0,9,0,37,11,0,0,7,0,0,0,0,0,0,-88,0,0,0,0,0,-82,-93,-88,-85,-136,-140,-141,-140,-126,-131,-138,-107,-100,-101,-122,-131,-193,-100,-304,-304,-304,-304,-341,-341,-660,-557,-5369,-4830,-29980,-29981,-29976,-6522,-29988,-29987,-29987,-29988,-29988,-29989,-29989,-29989,-29990,-29991]} 1. e4 {[%emt 0:03:59]} c5 {[%emt 0:00:10]} 2. Nf3 {[%emt 0:00:12]} d6 {[%emt 0:00:05]} 3. Bb5+ {[%emt 0:01:09]} Nd7 {[%emt 0:00:09][%cal Bb8d7,Bd7c5,Bc5d3][%mdl 32]} 4. d4 {[%emt 0:00:26]} cxd4 {[%emt 0:00:06]} 5. Nxd4 {[%emt 0:00:33]} Ngf6 {[%emt 0:00:38]} 6. O-O {[%emt 0:01:05] B51: Sicilian: Moscow Variation (3 Bb5+) without 3...Bd7.} a6 {[%emt 0:00:36]} 7. Bd3 {[%emt 0:01:09]} Nc5 {[%emt 0:00:22]} 8. Re1 {[%emt 0:02:49] The position is equal.} e5 {[%emt 0:01:34] [#]} 9. Nb3 $146 {[%emt 0:08:31]} ({Predecessor:} 9. Nf3 h6 10. c4 Nxd3 11. Qxd3 Be7 12. Nc3 O-O 13. Nd2 Be6 14. Nf1 Rc8 15. b3 {½-½ (34) Stijve,T (2394)-Rathanvel,V (2478) Biel 2022}) 9... Nxd3 {[%emt 0:00:31]} 10. Qxd3 {[%emt 0:00:15]} Be7 {[%emt 0:05:08]} 11. Nc3 {[%emt 0:04:52]} Be6 {[%emt 0:02:36]} 12. Bg5 {[%emt 0:07:59]} Rc8 {[%emt 0:05:53]} 13. Rad1 {[%emt 0:01:44]} Bc4 {[%emt 0:03:07]} 14. Qd2 {[%emt 0:05:49]} Rc6 {[%emt 0:05:36]} 15. Qc1 {[%emt 0:20:04]} O-O {[%emt 0:10:39]} 16. Nd2 {[%emt 0:01:00]} Be6 {[%emt 0:05:35]} 17. Nf1 {[%emt 0:00:55]} b5 {[%emt 0:02:45]} 18. a3 {[%emt 0:04:24]} Rc5 {[%emt 0:05:29]} (18... h6 $5 {[%cal Rh6g5]} 19. Bxf6 Bxf6 $11) 19. Rd3 {[%emt 0:02:19]} a5 {[%emt 0:02:04]} (19... Bc4 $5 {[%cal Rc4d3]}) 20. Bxf6 {[%emt 0:04:41]} Bxf6 {[%emt 0:00:05]} 21. Qd1 {[%emt 0:02:06]} Qc8 {[%emt 0:05:39]} 22. Ne3 {[%emt 0:02:31]} Bg5 $1 {[%emt 0:02:31]} 23. Nf5 {[%emt 0:05:59]} b4 {[%emt 0:03:04]} (23... g6 {seems wilder.} 24. Rg3 Bf6 25. Qxd6 Rd8) 24. axb4 {[%emt 0:01:10]} axb4 {[%emt 0:00:05]} 25. Nxd6 {[%emt 0:05:19]} (25. Nd5 $11 Bxd5 26. Rxd5 (26. Nxd6 Qc7 $15) 26... Rxd5 27. Qxd5) 25... Qc6 {[%emt 0:01:43]} (25... Qc7 $1 $17 26. Nd5 (26. Ncb5 Qc6 $17) 26... Bxd5 27. Rxd5 Rxc2) 26. Nd5 $11 {[%emt 0:00:34]} Bxd5 {[%emt 0:00:42]} (26... Qxd6 $2 27. Nf6+ $1 {[%mdl 512]} (27. Nxb4 $2 {perishes.} Qb6 $19) 27... Bxf6 28. Rxd6 $18) 27. Rxd5 {[%emt 0:00:09]} Rxc2 {[%emt 0:00:28]} 28. b3 {[%emt 0:03:11]} (28. Nf5 $11) 28... Rc1 $17 {[%emt 0:02:41]} 29. Qe2 {[%emt 0:01:03]} Qc2 {[%emt 0:00:14] Against Nc4} 30. Qf1 {[%emt 0:02:49]} ({White should try} 30. Kf1) 30... Rxe1 $40 {[%emt 0:00:07][%mdl 128] Black attacks with force.} 31. Qxe1 {[%emt 0:00:01]} Qxb3 {[%emt 0:00:08]} 32. g3 {[%emt 0:01:05]} Qc3 {[%emt 0:05:16]} 33. Qb1 {[%emt 0:03:56]} Ra8 {[%emt 0:02:38]} 34. Kg2 {[%emt 0:01:09]} Be7 {[%emt 0:08:27] And now ...g6 would win.} ({Don't take} 34... Ra3 35. Qd1 g6 36. Nb5 $16) 35. Nf5 {[%emt 0:01:07] [#] Against g6} Bf8 {[%emt 0:00:40]} 36. Qd1 {[%emt 0:00:10]} (36. Ne3 $17) 36... g6 {[%emt 0:03:17]} ({Black should play} 36... Rb8 $19 {Strongly threatening ...b3.} 37. Rd8 Qc7 38. Ne7+ Kh8 39. Rxb8 Qxb8) 37. Rd8 $2 {[%emt 0:00:12] Prevents b3. This move loses the game for White.} (37. Ne3 $17) 37... Rxd8 $19 {[%emt 0:00:57]} 38. Qxd8 {[%emt 0:00:02][%mdl 4096] Endgame KQB-KQN} Qc5 {[%emt 0:00:40]} ({Not} 38... gxf5 39. Qg5+ Bg7 40. Qd8+ Bf8 41. Qg5+ Bg7 42. Qd8+ Bf8 $11) 39. Ne3 {[%emt 0:01:34]} b3 {[%emt 0:03:41] White must now prevent ...b2.} 40. Nd5 $2 {[%emt 0:00:26]} (40. Qb8 Qb4 41. Qxb4 Bxb4 42. Nc4) 40... b2 {[%emt 0:00:46]} 41. Qb8 {[%emt 0:00:27] Prevents b1Q.} Qd4 {[%emt 0:01:22]} 42. f3 {[%emt 0:01:09]} Kg7 {[%emt 0:00:46]} 43. g4 {[%emt 0:00:59] [#]} Bb4 $1 {[%emt 0:03:12][%mdl 512]} 44. Qd8 {[%emt 0:00:51]} (44. Qxb4 Qxb4) 44... b1=Q {[%emt 0:01:21] Black mates.} 45. Qf6+ {[%emt 0:00:24]} Kg8 {[%emt 0:00:04]} 46. Qd8+ {[%emt 0:00:20]} Bf8 {[%emt 0:00:04]} 47. Nf6+ {[%emt 0:00:16]} Kg7 {[%emt 0:00:04]} 48. Ne8+ {[%emt 0:00:06]} Kh8 {[%emt 0:00:05] Weighted Error Value: White=0.55/Black=0.17 (very precise)} 0-1